Cogmind - Beta 16 @@@ ROGUE MODE // 2026.01.11 @ 12:37:06 Player: jam Result: Destroyed by as-91841 with Assembled Rifle Performance ------------- Evolutions (0) 0 Regions Visited (2) 400 Robots Destroyed (15) 75 Value Destroyed (287) 287 Prototype IDs (0) 0 Alien Tech Used (0) 0 Bonus (0) 0 TOTAL SCORE: 762 Bonus ------- None Cogmind --------- Core Integrity 0/250 Matter 294/300 Energy 160/160 System Corruption 0% Temperature Cool (40) Movement Treading (160) Location -10/Mines Parts ------- > --- POWER (1) -------- Light Nuclear Core > --- PROPULSION (2) --- Light Treads > --- UTILITY (2) ------ Small Storage Unit Targeting Computer > --- WEAPON (2) ------- Particle Gun Assault Rifle > --- INVENTORY (8) ---- Light Ion Engine Light Ion Engine Light Ion Engine Aluminum Leg Aluminum Leg Beam Cannon Assault Rifle Grenade Launcher Peak State ------------ > --- POWER ------------ Light Nuclear Core > --- PROPULSION ------- Light Treads Light Treads > --- UTILITY ---------- Small Storage Unit Targeting Computer > --- WEAPON ----------- Particle Gun Assault Rifle > --- INVENTORY -------- Ion Engine Light Ion Engine Light Ion Engine Aluminum Leg Aluminum Leg Beam Cannon Light Assault Rifle Grenade Launcher [Rating: 10] Favorites ----------- Power Ion Engine Engine Ion Engine Power Core Light Nuclear Core Propulsion Light Treads Treads Light Treads Utility Small Storage Unit Device Improved Terrain Scanner Storage Small Storage Unit Processor Targeting Computer Weapon Assault Rifle Energy Gun Particle Gun Ballistic Gun Assault Rifle Launcher Grenade Launcher Build | -11 -10 -10 ------- Run | Yrd Mat Min Slots Evolved . | . . . Power . | . . . Propulsion . | . . . Utility . | . . . Weapon . | . . . Parts Attached 14 | 8 4 2 Power 4 | 1 2 1 Engine 3 | 1 2 . Core 1 | . . 1 Reactor . | . . . Propulsion 2 | 2 . . Treads 2 | 2 . . Leg . | . . . Wheel . | . . . Hover . | . . . Flight . | . . . Utility 3 | 2 1 . Device 1 | 1 . . Storage 1 | 1 . . Processor 1 | . 1 . Hackware . | . . . Protection . | . . . Artifact . | . . . Weapon 5 | 3 1 1 Energy Gun 1 | . . 1 Energy Cannon . | . . . Ballistic Gun 3 | 3 . . Ballistic Cannon . | . . . Launcher 1 | . 1 . Special Weapon . | . . . Impact Weapon . | . . . Slashing Weapon . | . . . Piercing Weapon . | . . . Special Melee Weapon . | . . . Unidentified Prototypes . | . . . Parts Lost 1 | . . 1 Power . | . . . Propulsion 1 | . . 1 Utility . | . . . Weapon . | . . . Highest Loss Streak 1 | . . 1 To Critical Strikes . | . . . Average Backups 6 | 2 6 8 Power 1 | . 1 3 Propulsion 1 | 1 2 2 Utility . | . . . Weapon 2 | . 2 3 Tool/Special . | . . . Unused Backups 6 | . . 6 Power 3 | . . 3 Propulsion 2 | . . 2 Utility . | . . . Weapon 1 | . . 1 Tool/Special . | . . . Average Slot Usage (%) 99 | . 100 99 Engine 9 | . 14 2 Core 5 | . . 11 Treads 27 | . 28 27 Device 7 | . 13 . Storage 14 | . 14 14 Processor 6 | . . 14 Energy Gun 4 | . . 11 Ballistic Gun 20 | . 24 16 Launcher 2 | . 4 . Peak Build Rating 10 | 9 9 10 Average Rating 8 | 5 8 9 On Entrance 5 | . 9 7 Avg Prop Armor Cover (%) . | . . . Naked Turns . | . . . Heaviest Build 16 | 15 16 15 Greatest Support 40 | 40 40 40 Greatest Overweight (x) . | . . . Average Overweight (x) . | . . . Largest Inventory Capacity 8 | 8 8 8 Average Capacity 7 | 6 8 8 Most Carried 8 | 4 8 8 Average Carried 6 | 2 6 7 Final Capacity 8 | 8 8 8 Final Carried 8 | 4 8 8 Class Distribution -------------------- 100% | Mutant Dominant Class ---------------- Mutant | -10/Materials Mutant | -10/Mines Resources | -11 -10 -10 ----------- Run | Yrd Mat Min Matter Collected 675 | 209 236 230 Remotely . | . . . Salvage Created 354 | 66 153 135 Parts 30 | 5 12 13 Haulers Intercepted . | . . . Recyclers Shooed . | . . . Parts Field Recycled . | . . . Retrieved Matter . | . . . Parts Self-Destructed . | . . . Prevented . | . . . Parts Restored . | . . . Kills | -11 -10 -10 ------- Run | Yrd Mat Min Combat Hostiles Destroyed 11 | . 6 5 Guns 10 | . 5 5 AOE 1 | . 1 . Classes Destroyed 5 | 2 3 . Worker 1 | . 1 . Tunneler 2 | 1 . 1 Recycler 1 | 1 . . Swarmer 6 | . 3 3 Grunt 5 | . 3 2 Best Kill Streak 3 | 2 3 3 Combat Bots Only 3 | . 3 3 Max Kills in Single Turn 2 | 1 2 2 Gunslinging 1 | . 1 . Exploded 1 | . 1 . Melee . | . . . Uniques/NPCs Destroyed . | . . . Combat | -11 -10 -10 -------- Run | Yrd Mat Min Hostile Shots Fired 81 | . 47 34 Missed 21 | . 13 8 Hits 60 | . 34 26 Projectile 60 | . 34 26 Damage Taken 776 | . 499 277 Core 256 | . 154 102 Absorbed by Shields . | . . . Core Remaining (%) 100 | 100 . . Volleys Fired 56 | 8 36 12 Largest 2 | 2 2 2 Hottest 85 | 40 50 85 Shots Fired 112 | 16 72 24 Gun 109 | 16 69 24 Cannon . | . . . Launcher 3 | . 3 . Special . | . . . Kinetic 101 | 16 69 16 Thermal 8 | . . 8 Explosive 3 | . 3 . Electromagnetic . | . . . Robot Hit Streak 7 | 5 7 4 Robot Miss Streak 4 | 2 2 4 Penetration Max . | . . . Secondary Targets 3 | . 2 1 Max Gunslinging Chain 1 | . 1 1 Shots Hit Robots 57 | 10 36 11 Core Hits 23 | 3 11 9 Critical Kills . | . . . Critical Parts Destroyed . | . . . Critical Strikes . | . . . Melee Attacks . | . . . Impact . | . . . Slashing . | . . . Piercing . | . . . Sneak Attacks . | . . . Combat Hostiles . | . . . Follow-up Attacks . | . . . Damage Inflicted 809 | 121 504 184 Guns 737 | 121 432 184 Cannons . | . . . Explosions 70 | . 70 . Melee . | . . . Ramming 2 | . 2 . Kinetic 659 | 121 432 106 Thermal 78 | . . 78 Explosive 70 | . 70 . Electromagnetic . | . . . Impact . | . . . Slashing . | . . . Piercing . | . . . Highest Corruption . | . . . Average Corruption . | . . . Corruption Purged . | . . . Corruption Blocked . | . . . Overload Shots . | . . . Overflow Damage . | . . . Projectiles . | . . . Explosions . | . . . Melee . | . . . Knockbacks . | . . . Impact . | . . . Kinetic . | . . . Secondary . | . . . Self-Inflicted Damage 134 | . 134 . Shots 4 | . 4 . Rammed 1 | . 1 . Targets Rammed 1 | . 1 . Kicked . | . . . Crushed . | . . . Highest Temperature 150 | . 8 150 Average Temperature 55 | . 5 58 Received Heat Transfer 219 | . 165 54 Siege Activations . | . . . Martial Activations . | . . . Shielding Activations . | . . . Robots Disrupted . | . . . Combat Hostiles . | . . . Robots Corrupted . | . . . Combat Hostiles . | . . . Parts Fried . | . . . Impact Corruptions . | . . . Robots Melted . | . . . Combat Hostiles . | . . . Parts Melted . | . . . Heat Transferred 185 | . . 185 Parts Sabotaged . | . . . Parts Stolen . | . . . Parts Stripped . | . . . Power Chain Reactions . | . . . Alert | -11 -10 -10 ------- Run | Yrd Mat Min Maximum Alert Level . | . . . Low Security (%) 100 | 100 100 100 Level 1 . | . . . Level 2 . | . . . Level 3 . | . . . Level 4 . | . . . Level 5 . | . . . High Security . | . . . Max Security . | . . . Peak Influence 74 | 5 74 60 Initial 16 | . . 16 Average 19 | . 24 18 Influence Increases 348 | 10 213 125 Destroy 0b10 Robot/C 220 | . 120 100 Destroy 0b10 Robot/NC 20 | 10 5 5 Destroy Leader 40 | . 20 20 Successful Hack 20 | . 20 . Disable Machine 15 | . 15 . Destroy Structure 33 | . 33 . Influence Decreases 348 | 10 169 169 Entered New Map 28 | . . 28 Time Decay 310 | 10 169 131 Lost Part 10 | . . 10 Squads Dispatched 3 | . 3 . Investigation 1 | . 1 . Extermination . | . . . Reinforcement 2 | . 2 . Assault . | . . . Garrison . | . . . Intercept . | . . . Searches Triggered . | . . . Construction Impeded . | . . . Haulers Reinforced . | . . . Active Scanning Responses . | . . . Cargo Convoy Interrupts . | . . . Stealth | -11 -10 -10 --------- Run | Yrd Mat Min Distress Signals 1 | . 1 . Communications Jammed . | . . . Distress Signals . | . . . Times Spotted 33 | . 14 19 Peak Tracking Total 20 | . 5 20 Tactical Retreats . | . . . Traps | -11 -10 -10 ------- Run | Yrd Mat Min Traps Triggered 1 | . 1 . Indirectly . | . . . Trap Hack Attempts . | . . . Triggered . | . . . Disarmed . | . . . Reprogrammed . | . . . Reused . | . . . Traps Extracted . | . . . Installed . | . . . Triggered . | . . . Machines | -11 -10 -10 ---------- Run | Yrd Mat Min Machines Disabled 1 | . 1 . Max in Single Turn 1 | . 1 . Machines Repaired . | . . . Machines Dismantled . | . . . Machines Sabotaged . | . . . Overloaded Fab Kills . | . . . Hacking | -11 -10 -10 --------- Run | Yrd Mat Min Machines Accessed 2 | . 2 . Terminals 2 | . 2 . Fabricators . | . . . Repair Stations . | . . . Recycling Units . | . . . Scanalyzers . | . . . Garrison Access . | . . . Total Hacks 6 | . 6 . Successful 4 | . 4 . Failed 2 | . 2 . Catastrophic 1 | . 1 . Database Lockouts . | . . . Manual 6 | . 6 . Terminals 6 | . 6 . Fabricators . | . . . Repair Stations . | . . . Recycling Units . | . . . Scanalyzers . | . . . Garrison Access . | . . . Terminal Hacks 3 | . 3 . Terminal Index 1 | . 1 . Transport Status 1 | . 1 . Hauler Manifests 1 | . 1 . Fabricator Hacks . | . . . Repair Station Hacks . | . . . Recycling Unit Hacks . | . . . Scanalyzer . | . . . Garrison Access Hacks . | . . . Unauthorized Hacks 1 | . 1 . Terminals 1 | . 1 . Track 1 | . 1 . Fabricators . | . . . Repair Stations . | . . . Recycling Units . | . . . Scanalyzers . | . . . Garrison Access . | . . . Data Cores Recovered . | . . . Used . | . . . Hacking Detections 2 | . 2 . Full Trace Events . | . . . Feedback Events . | . . . Feedback Blocked . | . . . Robot Schematics Acquired . | . . . Robots Built . | . . . Authchips . | . . . Time . | . . . Total Robot Build Rating . | . . . Part Schematics Acquired . | . . . Parts Built . | . . . Authchips . | . . . Time . | . . . Total Part Build Rating . | . . . Part Studies Acquired . | . . . Parts Repaired . | . . . Time . | . . . Parts Recycled . | . . . Recycled Matter . | . . . Retrieved Matter . | . . . Retrieved Components . | . . . Parts Scanalyzed . | . . . Part Schematics Acquired . | . . . Parts Damaged . | . . . Bothacking | -11 -10 -10 ------------ Run | Yrd Mat Min Used RIF Installer . | . . . Robots Hacked . | . . . Non-combat . | . . . Combat . | . . . Robot Hacks Applied . | . . . Relay Couplers Released . | . . . Fabnet Peak Effective % . | . . . Robots Rewired . | . . . Allies Hacked . | . . . Hacks Repelled . | . . . Allies | -11 -10 -10 -------- Run | Yrd Mat Min Total Allies . | . . . Largest Group . | . . . Highest-Rated Group . | . . . Highest-Rated Ally . | . . . Total Orders . | . . . Ally Attacks . | . . . Total Damage . | . . . Kills . | . . . Allies Corrupted . | . . . Allies Melted . | . . . Intel | -11 -10 -10 ------- Run | Yrd Mat Min Active Infowar (turns) 524 | 6 518 . Terrain 524 | 6 518 . Robot Analysis Total . | . . . Derelict Logs Recovered . | . . . Drone Launches . | . . . Drone Recoveries . | . . . Exploration | -11 -10 -10 ------------- Run | Yrd Mat Min Turns Passed 1080 | 125 551 404 Spaces Moved 535 | 58 249 228 Core 5 | 5 . . Treads 530 | 53 249 228 Legs . | . . . Wheels . | . . . Hover . | . . . Flight . | . . . Fastest Speed 50 | 50 160 160 Average Speed 158 | 150 160 160 Slowest Speed 160 | 160 160 160 Overloaded Moves . | . . . Propulsion Burnouts . | . . . Robots Hopped . | . . . Potential Cave-ins . | . . . Cave-ins Triggered . | . . . Exploration Rate (%) 35 | 5 51 50 Regions Visited 2 Branch Regions 1 Pre-discovered Areas . | . . . Known Exits Taken . | . . . Unknown Exits Taken 2 | 1 1 . Scrap Searched 2 | . . 2 Spaces Dug . | . . . Terrain Destroyed 50 | . 50 . Melee . | . . . Projectile . | . . . AOE 50 | . 50 . Terrain Rammed . | . . . Walls Destroyed . | . . . Machines Disabled . | . . . Actions | -11 -10 -10 --------- Run | Yrd Mat Min Total 653 | 76 327 250 Wait 34 | . 34 . Move 533 | 57 248 228 Hop . | . . . Pick Up 8 | 3 2 3 Fast Attach 9 | 7 1 1 Attach . | . . . Detach . | . . . Swap 6 | 1 4 1 Drop 6 | . 1 5 Fire 56 | 8 36 12 Melee . | . . . Ram . | . . . Kick . | . . . Crush 1 | . 1 . Escape Stasis . | . . . Rewire . | . . . Trap . | . . . Miscellaneous . | . . . Route ------- -11/Scrapyard -10/Materials -10/Mines History --------- Turn | Location | Event 18 | -11/Scrapyard | Discovered new exit (range 14) 126 | -11/Scrapyard | Entered Materials 316 | -10/Materials | Build established: Mutant 396 | -10/Materials | Core integrity fell below 50% 646 | -10/Materials | Discovered new exit (range 8) 677 | -10/Materials | Entered Mines 716 | -10/Mines | Met a Derelict bent on vengeance 721 | -10/Mines | Core integrity fell below 20% 1075 | -10/Mines | Assembled infested the area 1081 | -10/Mines | Destroyed by as-91841 with Assembled Rifle Last Messages --------------- 00954_ S-10 Pest destroyed. 00954_ Switching to secondary target: S-10 Pest. 00960_ S-10 Pest destroyed. 00968_ Acquired 7 matter. 00973_ Dropped Ion Engine. 00973_ Acquired Lgt. Ion Engine. 00973_ Acquired 14 matter. 01034_ Searching scrap... 01034_ Found Flight Unit. 01034_ Found 58 Matter. 01035_ Acquired 58 matter. 01044_ Searching scrap... 01044_ Found 54 Matter. 01044_ Found Datajack. 01044_ Found 67 Matter. 01045_ Acquired 67 matter. 01045_ Acquired 17 matter. 01075_ ALERT: Infestation in the mines, dispatching Demolisher response squad. 01076_ Lgt. Treads destroyed. Map ----- +----------------------------------------------------+ | ##??????????????????????????? | | ######## ## ##?????????????????????????? | | ???????# ##### ##????????????????????????? | | ???????# #???## #????????????????????????? | | ???????# #????## #????????????????????????? | | #??????# #?????## ##????????????????????????? | | ######## #??????# ########## ?????? | | #??????# / % ?????? | | ################# ###### ### #??????? | | ?????????## #????# #????? ??????????? | | ?????????# = #????# #???? #???????????? | | ?????????# #####??### #??? #????????????? | | ?????? ????????# ##?# ##???????????? | | ?????##### ?????????# ## ###?????????? | | ?????????##??????????## ##????????? | | ??????????????????????## ##???????? | | ??????????????????????## #??????? | | ?????????????????????## u #?????? | | ????????????????????## ## ????? | | ?????????????????#### #?# ????? | | ????????????????## ##? ?????? | | ???????????###### #? ##### ?????? | | ???????? #?? ##???????????? | | ??????????######## #??###????????????? | | ?????????????????#### ##????????????????? | | ????????????????????## @ #????????????????? | | ?????????????????????## ?????????????? | | ??????????????????????## #?????????? | | ???????????????????????## ##?????????? | | ????????????????????????## ####??????????? | | ??????????????????????????aa ##?????????????? | | ??????????????????????????# #??????????????? | | ??????????????????????????? ??????????????? | | ??????????????????????????? #?????????????? | | ??????????????????????????? a #?????????????? | | ????????????????????????????aa#?????????????? | | ????????????????????????????aaa?????????????? | | ???????????????????????????? a ?????????????? | | ????????????????????????????aaa ????????????? | | ?????????????????????????????a??????????????? | | ????????????????????????????????????????????? | | ????????????????????????????????????????????? | | ????????????????????????????????????????????? | | ????????????????????????????????????????????? | | ????????????????????????????????????????????? | | ????????????????????????????????????????????? | | ????????????????????????????????????????????? | | ????????????????????????????????????????????? | | ????????????????????????????????????????????? | | | +----------------------------------------------------+ Best States ------------- Heat Dissipation 25 Energy Generation 14 Energy Capacity 250 Matter Stores 300 Matter Capacity 300 Sight Range 16 Terrain Scan Range 16 Terrain Scan Density 10 Evasion (%) 40 Targeting Accuracy 5 Recoil Reduction 2 Item Schematics ----------------- None Robot Schematics ------------------ None Fabricated ------------ Nothing Repaired ---------- Nothing Studied --------- None Alien Tech Used ----------------- None Achievements -------------- None Challenges ------------ None Game ------ Seed SkeletonPointyMallet Manual? 0 Play Time 00:08:11 Cumulative 28.1 hours Start 2026.01.11 @ 12:30:27 End 2026.01.11 @ 12:37:06 Sessions 1 Manual Loads 0 Difficulty Rogue Special Mode None Game No. 52 Rogue 49 Adventurer 3 Explorer 0 Win Type - Total 0 Types 0/0/0/0/0/0/0/0/0/0 Lore% 11 Gallery% 29 Achievement% 21 Wizard Run 0 Options --------- Layout 0 ASCII 0 Keyboard 0 Movement Mouse Keybinds 0 Fullscreen 1 Font 18/SmallcapsGlow Map View 32x25 Zoom Use 100% Tactical HUD 1 Map Filters NONE Filters NONE Steam 1 RUN: 220075fc-f769-4a8b-80fc-c6372ad132f2